[Event "FIDE WSTC-50-65 2022"]
[Site "Acqui Terme"]
[Date "2022.06.26"]
[Round "6.10"]
[White "Littlewood, Paul E"]
[Black "Peretz, Malkiel"]
[Result "1-0"]
[ECO "B30"]
[WhiteElo "2347"]
[BlackElo "2139"]
[Annotator "TA"]
[PlyCount "43"]
[EventDate "2022.06.20"]
[EventType "team-tourn"]
[EventCountry "ITA"]
[SourceTitle "playchess.com"]
[Source "ChessBase"]
[SourceQuality "1"]
[TimeControl "40/5400+30:1800+30"]

{[%evp 12,43,31,7,22,14,77,66,66,66,112,102,315,68,342,339,333,315,299,235,446,461,456,423,771,545,717,714,806,789,29987,29988,29973,29970]} 1. e4 {[%emt 0:01:00][%cal Be2e4,Be4e5][%mdl 32]} c5 {[%emt 0:01:00]} 2. Nf3 {[%emt 0:00:30]} Nf6 {[%emt 0:01:30]} 3. Nc3 {[%emt 0:04:30]} Nc6 {[%emt 0:00:30]} 4. Bb5 {[%emt 0:06:30]} Nd4 {[%emt 0:09:30]} 5. e5 {[%emt 0:03:30]} Nxb5 {[%emt 0:20:30]} 6. Nxb5 {[%emt 0:00:30]} Nd5 {[%emt 0:03:30]} 7. O-O {[%emt 0:01:30]} a6 {[%emt 0:06:30] B30: Sicilian: 2...Nc6 3 Bb5, lines without ...g6.} 8. Nc3 {[%emt 0:02:30]} e6 {[%emt 0:00:30]} (8... Nxc3 $11 {remains equal.} 9. dxc3 d5) 9. Nxd5 $16 {[%emt 0:02:30]} exd5 {[%emt 0:00:30] White is slightly better.} 10. d4 {[%emt 0:00:30]} d6 {[%emt 0:03:30] [#]} (10... c4 $14 {deserves consideration.}) 11. Bg5 $146 {[%emt 0:14:30]} ({Predecessor:} 11. Re1 Be7 12. exd6 Qxd6 13. dxc5 Qxc5 14. Be3 Qd6 15. Qd2 O-O 16. Rad1 Bg4 17. Qxd5 Qxd5 18. Rxd5 {0-1 (64) Winterberg,L (1820)-Sergin,M (2102) Playchess.com INT 2011}) 11... Qb6 {[%emt 0:06:30]} (11... Be7 $16) 12. dxc5 $2 {[%emt 0:04:30]} (12. Re1 $18) 12... Qxc5 {[%emt 0:03:30][%mdl 8192] [#]} (12... dxc5 $14 13. Qxd5 h6) 13. Re1 $1 $18 {[%emt 0:04:30] Hoping for b4.} Be6 {[%emt 0:07:30] [#]} 14. Nd4 $1 {[%emt 0:02:30]} Kd7 {[%emt 0:03:30]} 15. b4 {[%emt 0:04:30]} Qc4 {[%emt 0:04:30]} (15... Qc7 16. Rc1 b5) 16. Nxe6 {[%emt 0:03:30]} fxe6 {[%emt 0:00:30]} 17. Qf3 {[%emt 0:00:30]} dxe5 {[%emt 0:15:12]} (17... Kc8 $142 18. Qf7 Qc6 19. Qxe6+ Kb8) 18. Rxe5 {[%emt 0:04:30] And now Qf7+ would win.} Bd6 {[%emt 0:08:25]} 19. Qf7+ {[%emt 0:00:30]} Kc6 {[%emt 0:00:25]} 20. Rxe6 {[%emt 0:00:30]} Rhf8 {[%emt 0:00:56] [#]} 21. Rxd6+ $1 {[%emt 0:01:30][%mdl 512]} Kxd6 {[%emt 0:00:12]} 22. Be7+ {Black did not feel at home in the position after the opening.  Weighted Error Value: White=0.48/Black=1.54} 1-0

[Event "FIDE WSTC-50-65 2022"]
[Site "Acqui Terme"]
[Date "2022.06.26"]
[Round "6.11"]
[White "Gal, Moshe"]
[Black "Stebbings, Anthony J"]
[Result "1/2-1/2"]
[ECO "E00"]
[WhiteElo "2110"]
[BlackElo "2297"]
[Annotator "TA"]
[PlyCount "36"]
[EventDate "2022.06.20"]
[EventType "team-tourn"]
[EventCountry "ITA"]
[SourceTitle "playchess.com"]
[Source "ChessBase"]
[SourceQuality "1"]
[TimeControl "40/5400+30:1800+30"]

{[%evp 17,36,13,12,3,7,8,18,0,8,8,8,8,4,8,4,0,10,9,40,50,41]} 1. d4 {[%emt 0:01:00]} Nf6 {[%emt 0:01:00]} 2. c4 {[%emt 0:00:00]} e6 {[%emt 0:00:00]} 3. g3 {[%emt 0:00:00]} Bb4+ {[%emt 0:00:00]} 4. Nd2 {[%emt 0:00:00]} c5 {[%emt 0:00:30]} 5. a3 {[%emt 0:00:00]} Bxd2+ {[%emt 0:00:00]} 6. Qxd2 {[%emt 0:00:30]} cxd4 {[%emt 0:00:00]} 7. Nf3 {[%emt 0:00:30]} b6 {[%emt 0:01:30]} 8. Bg2 {[%emt 0:00:30]} Bb7 {[%emt 0:00:30]} 9. O-O {[%emt 0:00:30]} Bxf3 {[%emt 0:00:00]} 10. exf3 {[%emt 0:03:30] E00: Catalan Bogo-Indian (3 g3 Bb4+).} Nc6 {[%emt 0:01:00]} 11. f4 {[%emt 0:02:30]} Rc8 {[%emt 0:06:30]} 12. b4 {[%emt 0:10:30] Against Na5. The position is equal.} O-O {[%emt 0:05:30]} 13. Bb2 {[%emt 0:01:30]} d6 {[%emt 0:26:30]} 14. Bxd4 {[%emt 0:09:30]} Nxd4 {[%emt 0:00:30]} 15. Qxd4 {[%emt 0:00:30]} Qc7 {[%emt 0:01:30] [#]} 16. Rfd1 $146 {[%emt 0:02:30]} ({Predecessor:} 16. Rfc1 Rfd8 17. Qe3 Qd7 18. Qd4 Qc7 19. Qe3 Qd7 20. Qd4 {½-½ (20) Volkov,S (2615)-Tomashevsky,E (2707) Taganrog 2011}) 16... Rfd8 {[%emt 0:00:30]} 17. Rac1 {[%emt 0:05:30]} a5 {[%emt 0:06:30]} 18. Qe3 {[%emt 0:03:30]} axb4 {[%emt 0:01:30] Weighted Error Value: White=0.03 (flawless) /Black=0.07 (flawless)} 1/2-1/2

[Event "FIDE WSTC-50-65 2022"]
[Site "Acqui Terme"]
[Date "2022.06.26"]
[Round "6.12"]
[White "Snape, Ian L"]
[Black "Tsifanskaya, Ludmila A"]
[Result "1/2-1/2"]
[ECO "E94"]
[WhiteElo "2112"]
[BlackElo "1952"]
[Annotator "NA RC"]
[PlyCount "79"]
[EventDate "2022.06.20"]
[EventType "team-tourn"]
[EventCountry "ITA"]
[SourceTitle "playchess.com"]
[Source "ChessBase"]
[SourceQuality "1"]
[TimeControl "40/5400+30:1800+30"]

1. c4 {[%emt 0:01:00]} Nf6 {[%emt 0:01:00]} 2. Nc3 {[%emt 0:00:00]} g6 {[%emt 0:00:00]} 3. e4 {[%emt 0:00:00]} d6 {[%emt 0:00:00]} 4. d4 {[%emt 0:00:30]} Bg7 {[%emt 0:00:30]} 5. Nf3 {[%emt 0:00:00]} O-O {[%emt 0:00:30]} 6. Be2 {[%emt 0:00:00]} Na6 {[%emt 0:00:30]} 7. O-O {[%emt 0:00:30]} e5 {[%emt 0:00:00]} 8. Be3 {[%emt 0:00:30]} c6 {[%emt 0:01:00]} 9. a3 {[%emt 0:06:30]} Ng4 {[%emt 0:13:30]} 10. Bg5 {[%emt 0:01:30]} f6 {[%emt 0:03:30]} 11. Bh4 {[%emt 0:02:30]} Nh6 {[%emt 0:00:30]} 12. Qd2 {[%emt 0:06:30]} Nf7 {[%emt 0:05:30]} 13. dxe5 {[%emt 0:14:30]} dxe5 {[%emt 0:02:30]} 14. Rad1 {[%emt 0:01:30]} Qxd2 {[%emt 0:03:30]} 15. Nxd2 {[%emt 0:00:30]} Nc7 {[%emt 0:00:30]} 16. b4 {[%emt 0:05:30]} Ne6 {[%emt 0:01:30]} 17. c5 {[%emt 0:00:30]} Nd4 {[%emt 0:10:30]} 18. Bc4 {[%emt 0:01:30]} Be6 {[%emt 0:03:30]} 19. Bxe6 {[%emt 0:03:30]} Nxe6 {[%emt 0:00:30]} 20. Nb3 {[%emt 0:00:30]} a5 {[%emt 0:05:30]} 21. bxa5 {[%emt 0:07:30]} Nd4 {[%emt 0:01:30]} 22. Nxd4 {[%emt 0:05:30]} exd4 {[%emt 0:00:30]} 23. Ne2 {[%emt 0:00:00]} Rxa5 {[%emt 0:01:30]} 24. Nxd4 {[%emt 0:00:00]} Re8 {[%emt 0:00:30]} 25. f3 {[%emt 0:05:30]} Rxc5 {[%emt 0:01:30]} 26. Bf2 {[%emt 0:04:30]} Rc4 {[%emt 0:09:30]} 27. Nb3 {[%emt 0:04:30]} Rc3 {[%emt 0:07:30]} 28. Nc5 {[%emt 0:02:30]} b5 {[%emt 0:07:40]} 29. a4 {[%emt 0:02:30]} bxa4 {[%emt 0:01:06]} 30. Nxa4 {[%emt 0:00:00]} Rc2 {[%emt 0:01:30]} 31. Rc1 {[%emt 0:01:00]} Ra2 {[%emt 0:01:20]} 32. Nb6 {[%emt 0:04:30]} Ne5 {[%emt 0:00:44]} 33. Rfd1 {[%emt 0:00:30]} Bh6 {[%emt 0:02:32]} 34. Ra1 {[%emt 0:04:01]} Rxa1 {[%emt 0:01:57]} 35. Rxa1 {[%emt 0:00:02]} Rd8 {[%emt 0:03:48]} 36. Kf1 {[%emt 0:02:13]} Bf8 {[%emt 0:05:28]} 37. Ke2 {[%emt 0:02:08]} Nd3 {[%emt 0:01:50]} 38. Be3 {[%emt 0:00:37]} Nc5 {[%emt 0:02:34]} 39. Rc1 {[%emt 0:01:46]} Rb8 {[%emt 0:00:44]} 40. Nc4 {[%emt 0:00:00]} 1/2-1/2

[Event "FIDE WSTC-50-65 2022"]
[Site "Acqui Terme"]
[Date "2022.06.26"]
[Round "6.13"]
[White "Vaisser, Anatoly"]
[Black "Knaak, Rainer"]
[Result "1/2-1/2"]
[ECO "D32"]
[WhiteElo "2488"]
[BlackElo "2479"]
[Annotator "TA"]
[PlyCount "82"]
[EventDate "2022.06.20"]
[EventType "team-tourn"]
[EventCountry "ITA"]
[SourceTitle "playchess.com"]
[Source "ChessBase"]
[SourceQuality "1"]
[TimeControl "40/5400+30:1800+30"]

{[%evp 15,82,5,10,2,8,15,15,18,37,29,23,45,33,16,9,14,22,0,16,12,14,8,68,63,55,52,112,98,92,91,96,81,81,81,81,81,81,78,83,84,85,54,54,0,0,0,0,0,0,0,0,0,0,0,7,0,0,0,0,0,0,0,0,0,0,-8,-8,-8,-8]} 1. d4 {[%emt 0:01:00]} d5 {[%emt 0:01:00]} 2. c4 {[%emt 0:00:00]} e6 {[%emt 0:00:00]} 3. Nc3 {[%emt 0:00:00]} a6 {[%emt 0:00:00]} 4. cxd5 {[%emt 0:00:30]} exd5 {[%emt 0:00:30]} 5. Bf4 {[%emt 0:01:30]} Nf6 {[%emt 0:00:30]} 6. e3 {[%emt 0:03:30]} c5 {[%emt 0:00:00]} 7. dxc5 {[%emt 0:07:30]} Bxc5 {[%emt 0:00:00]} 8. Nf3 {[%emt 0:00:00]} Nc6 {[%emt 0:00:30]} 9. Be2 {[%emt 0:03:00] D32: Tarrasch Defence: Sidelines and lines without g3.} O-O {[%emt 0:00:30]} 10. O-O {[%emt 0:00:30]} Be6 {[%emt 0:00:30]} 11. Ne5 {[%emt 0:10:30]} Bd6 {[%emt 0:01:30]} 12. Nxc6 {[%emt 0:00:30]} bxc6 {[%emt 0:00:00]} 13. Bxd6 {[%emt 0:00:00]} Qxd6 {[%emt 0:00:00]} 14. Na4 {[%emt 0:01:00]} c5 {[%emt 0:01:30]} 15. Rc1 {[%emt 0:01:30]} Rfc8 {[%emt 0:20:30] [#]} 16. Qd3 $146 {[%emt 0:09:30]} ({Predecessor:} 16. Qd2 Rab8 17. b3 Rc6 18. Rfd1 Qc7 19. h3 h6 20. Bf3 a5 21. Nc3 Rd8 22. e4 {1-0 (48) Nakamura,H (2736)-Le,Q (2709) chess24.com INT 2021}) 16... Rc6 {[%emt 0:16:30]} 17. Rfd1 {[%emt 0:03:30]} Rac8 {[%emt 0:00:30]} 18. h3 {[%emt 0:06:30]} Nd7 {[%emt 0:07:30]} (18... h6 $11) 19. Nc3 $14 {[%emt 0:04:30][%cal Rc3d5]} Nf6 {[%emt 0:01:30]} 20. Bf3 {[%emt 0:03:30]} Qb8 {[%emt 0:16:30]} (20... Rd8 $14) 21. Nxd5 {[%emt 0:03:30]} Nxd5 {[%emt 0:12:14]} 22. Bxd5 {[%emt 0:00:30]} Rd6 {[%emt 0:02:49]} 23. Qc4 {[%emt 0:08:30] And now Bxe6 would win. White is more active.} Rcd8 {[%emt 0:02:10][%cal Rd6d5]} 24. e4 {[%emt 0:01:30]} Qxb2 {[%emt 0:00:35]} 25. Qxc5 {[%emt 0:00:30]} g6 {[%emt 0:00:35]} 26. Rc2 {[%emt 0:01:30]} Qe5 {[%emt 0:00:16][%cal Re6d5]} 27. Rcd2 {[%emt 0:03:30]} Kg7 {[%emt 0:02:02]} 28. Qe3 {[%emt 0:09:58]} Bxd5 {[%emt 0:07:16]} 29. f4 {[%emt 0:00:18]} ({But not} 29. Rxd5 Rxd5 30. exd5 Rxd5 31. Rxd5 Qxd5 $11) (29. Qd4 $14 Qxd4 30. Rxd4) 29... Qe6 $11 {[%emt 0:01:25] White must now prevent ...Bc6. The position is equal.} 30. Qd4+ {[%emt 0:00:33][%mdl 64] [#] Pin} Kg8 {[%emt 0:01:51]} 31. f5 {[%emt 0:00:55]} gxf5 {[%emt 0:01:00]} 32. exd5 {[%emt 0:00:16]} Rxd5 {[%emt 0:01:07]} 33. Qxd5 {[%emt 0:00:12]} Rxd5 {[%emt 0:00:02]} 34. Rxd5 {[%emt 0:00:09][%mdl 4096] Endgame KQ-KRR} f4 {[%emt 0:00:20]} 35. R5d2 {[%emt 0:03:32]} f3 {[%emt 0:00:23]} 36. Rf1 {[%emt 0:04:09]} Qe3+ {[%emt 0:02:11]} 37. Rdf2 {[%emt 0:00:16]} fxg2 {[%emt 0:00:10]} 38. Kxg2 {[%emt 0:00:03]} Qe4+ {[%emt 0:00:10]} 39. Rf3 {[%emt 0:00:27]} Kg7 {[%emt 0:00:27]} 40. Kh2 {[%emt 0:00:00]} Qe5+ {[%emt 0:00:00]} 41. Kh1 {[%emt 0:08:12]} Qd5 {Weighted Error Value: White=0.06 (flawless) /Black=0.08 (flawless)} 1/2-1/2

[Event "FIDE WSTC-50-65 2022"]
[Site "Acqui Terme"]
[Date "2022.06.26"]
[Round "6.14"]
[White "Chevelevitch, Evgueni"]
[Black "Roos, Louis"]
[Result "1-0"]
[ECO "B85"]
[WhiteElo "2369"]
[BlackElo "2286"]
[Annotator "TA"]
[PlyCount "77"]
[EventDate "2022.06.20"]
[EventType "team-tourn"]
[EventCountry "ITA"]
[SourceTitle "playchess.com"]
[Source "ChessBase"]
[SourceQuality "1"]
[TimeControl "40/5400+30:1800+30"]

{[%evp 24,77,30,24,17,33,18,0,0,0,0,0,0,0,72,48,39,74,83,70,84,62,70,46,69,46,356,345,319,334,316,161,203,203,195,203,193,147,205,205,466,137,216,218,231,25,17,22,461,451,451,451,870,852,1573,1313]} 1. e4 {[%emt 0:01:00]} c5 {[%emt 0:03:00]} 2. Nf3 {[%emt 0:00:00]} e6 {[%emt 0:00:00]} 3. d4 {[%emt 0:00:00]} cxd4 {[%emt 0:00:00]} 4. Nxd4 {[%emt 0:00:30]} Nf6 {[%emt 0:01:30]} 5. Nc3 {[%emt 0:00:00]} d6 {[%emt 0:01:30]} 6. Be2 {[%emt 0:01:00]} Be7 {[%emt 0:03:30]} 7. O-O {[%emt 0:00:30]} a6 {[%emt 0:01:30]} 8. f4 {[%emt 0:00:00]} Qc7 {[%emt 0:07:30]} 9. Kh1 {[%emt 0:00:00]} Nc6 {[%emt 0:07:30]} 10. a4 {[%emt 0:03:30]} Bd7 {[%emt 0:01:30]} 11. Nb3 {[%emt 0:00:30]} O-O {[%emt 0:10:30]} 12. Be3 {[%emt 0:02:30]} Rac8 {[%emt 0:04:30]} 13. a5 {[%emt 0:07:30]} Nb4 {[%emt 0:02:30] B85: Sicilian Scheveningen: 6 Be2 a6, lines with early Be3.} 14. Bb6 {[%emt 0:03:30]} Qb8 {[%emt 0:02:30]} 15. Bf3 {[%emt 0:00:30]} e5 {[%emt 0:04:30] The position is equal.} 16. Be3 {[%emt 0:12:30]} Rfe8 {[%emt 0:07:30]} 17. Qd2 {[%emt 0:03:30] [#]} Be6 $146 {[%emt 0:06:30]} ({Predecessor:} 17... Bf8 18. Rad1 Ng4 19. Bxg4 Bxg4 20. Rc1 Be6 21. Nd5 Nxd5 22. exd5 Bd7 23. c4 exf4 24. Bxf4 {½-½ (53) Moreno Tejera,E (2386)-Granda Zuniga,J (2641) Navalmoral 2012}) 18. Ra4 {[%emt 0:11:30]} d5 {[%emt 0:10:30]} (18... Bc4 $11 {keeps the balance.} 19. Rd1 Bxb3 20. Rxb4 (20. cxb3 exf4 21. Bxf4 Nc6 $14) 20... Bc4) 19. exd5 $16 {[%emt 0:07:30]} Bd7 {[%emt 0:03:30]} 20. fxe5 {[%emt 0:10:30]} Qxe5 {[%emt 0:00:30]} 21. Bf4 {[%emt 0:04:30]} Qf5 {[%emt 0:00:30]} 22. Nd4 $36 {[%emt 0:00:30][%mdl 2048] White has the initiative.} Qg6 {[%emt 0:00:00]} 23. d6 {[%emt 0:01:30]} Bxa4 {[%emt 0:06:02]} 24. Nxa4 {[%emt 0:01:30]} Nxc2 {[%emt 0:03:42][%mdl 8192]} 25. dxe7 $18 {[%emt 0:08:30] Strongly threatening Nb6.} Nxd4 {[%emt 0:01:02]} 26. Qxd4 {[%emt 0:00:30]} Rxe7 {[%emt 0:00:06]} 27. Nc3 {[%emt 0:00:35]} (27. Nc5 $142) 27... Rce8 {[%emt 0:00:44]} 28. h3 {[%emt 0:04:45]} h6 {[%emt 0:02:14]} 29. Kh2 {[%emt 0:02:56]} Qf5 {[%emt 0:04:37]} 30. b4 {[%emt 0:04:28]} ({White should play} 30. Qb4 $18) 30... Rd7 {[%emt 0:01:51] [#]} (30... h5 $16 31. Rd1 Rd7) 31. Qc4 $1 {[%emt 0:00:54]} Nh5 $2 {[%emt 0:03:27]} (31... Qd3 32. Qxd3 Rxd3) 32. Bd5 $2 {[%emt 0:02:59]} (32. Bg4 $18 {is the precise move to win.} Qd3 33. Qxd3 Rxd3 34. Bxh5) 32... Nf6 {[%emt 0:00:31] [#]} (32... Qg6 $16 33. Kh1 Nxf4 34. Qxf4 Ree7) 33. Bg3 $1 {[%emt 0:02:56] This bishop pair is nice.} Qg6 {[%emt 0:00:16]} (33... Qg5 34. Bf3) 34. Rf4 $2 {[%emt 0:01:52]} (34. Bf3 $18) 34... Nxd5 $11 {[%emt 0:00:34]} 35. Nxd5 {[%emt 0:00:01]} Qg5 {[%emt 0:00:37][%mdl 8192] [#] Prevents Nf6+.} (35... Qe6 $1 $11 {and Black has nothing to worry.} 36. Nb6 Qxc4 37. Nxc4 (37. Rxc4 Rd2 $11) 37... Re2) 36. Nf6+ $1 $18 {[%emt 0:01:01][%mdl 512] White is clearly winning.} gxf6 {[%emt 0:00:22]} 37. Rg4 {[%emt 0:00:04] Hoping for h4.} Rde7 {[%emt 0:01:08]} (37... Kh8 $142 38. Rxg5 hxg5) 38. Bh4 {[%emt 0:01:08][%mdl 64] Pin} Re4 {[%emt 0:00:23]} 39. Rxe4 {Weighted Error Value: White=0.51/Black=0.78} ({Inferior is} 39. Rxg5+ hxg5 40. Qf1 gxh4 41. Qxf6 R8e5 $11) 1-0

[Event "FIDE WSTC-50-65 2022"]
[Site "Acqui Terme"]
[Date "2022.06.26"]
[Round "6.15"]
[White "Giffard, Nicolas"]
[Black "Kiefer, Gerhard"]
[Result "1/2-1/2"]
[ECO "E66"]
[WhiteElo "2236"]
[BlackElo "2224"]
[Annotator "RC"]
[PlyCount "56"]
[EventDate "2022.06.20"]
[EventType "team-tourn"]
[EventCountry "ITA"]
[SourceTitle "playchess.com"]
[Source "ChessBase"]
[SourceQuality "1"]
[TimeControl "40/5400+30:1800+30"]

1. Nf3 {[%emt 0:01:00]} Nf6 {[%emt 0:01:00]} 2. c4 {[%emt 0:00:00]} g6 {[%emt 0:00:30]} 3. Nc3 {[%emt 0:00:00]} Bg7 {[%emt 0:00:00]} 4. g3 {[%emt 0:00:30]} O-O {[%emt 0:00:00]} 5. Bg2 {[%emt 0:00:30]} d6 {[%emt 0:00:30]} 6. O-O {[%emt 0:00:30]} c5 {[%emt 0:07:30]} 7. d4 {[%emt 0:00:30]} Nc6 {[%emt 0:00:30]} 8. d5 {[%emt 0:01:30]} Na5 {[%emt 0:00:30]} 9. Nd2 {[%emt 0:03:30]} a6 {[%emt 0:03:30]} 10. Qc2 {[%emt 0:03:30]} Rb8 {[%emt 0:00:30]} 11. b3 {[%emt 0:04:30]} b5 {[%emt 0:00:30]} 12. Rb1 {[%emt 0:04:30]} bxc4 {[%emt 0:13:30]} 13. bxc4 {[%emt 0:00:30]} Rxb1 {[%emt 0:00:00]} 14. Ncxb1 {[%emt 0:03:30]} e5 {[%emt 0:09:00]} 15. Bb2 {[%emt 0:04:30]} Bd7 {[%emt 0:14:30]} 16. Bc3 {[%emt 0:00:30]} Qc7 {[%emt 0:09:30]} 17. Qb2 {[%emt 0:06:30]} Ra8 {[%emt 0:01:30]} 18. Na3 {[%emt 0:01:30]} Rb8 {[%emt 0:02:30]} 19. Qa1 {[%emt 0:14:30]} Nh5 {[%emt 0:02:30]} 20. Ne4 {[%emt 0:05:30]} Nb7 {[%emt 0:05:30]} 21. Rb1 {[%emt 0:04:30]} f5 {[%emt 0:00:00]} 22. Nd2 {[%emt 0:01:30]} Nd8 {[%emt 0:01:00]} 23. Rxb8 {[%emt 0:03:30]} Qxb8 {[%emt 0:00:00]} 24. Qb1 {[%emt 0:03:30]} Qxb1+ {[%emt 0:00:00]} 25. Naxb1 {[%emt 0:00:30]} e4 {[%emt 0:03:30]} 26. Bxg7 {[%emt 0:00:30]} Kxg7 {[%emt 0:00:30]} 27. f3 {[%emt 0:03:30]} exf3 {[%emt 0:01:30]} 28. exf3 {[%emt 0:00:00]} Ba4 {[%emt 0:01:30]} 1/2-1/2

[Event "FIDE WSTC-50-65 2022"]
[Site "Acqui Terme"]
[Date "2022.06.26"]
[Round "6.16"]
[White "Kierzek, Matthias"]
[Black "Berthelot, Yannick"]
[Result "1/2-1/2"]
[ECO "A80"]
[WhiteElo "2224"]
[BlackElo "2242"]
[Annotator "RC"]
[PlyCount "95"]
[EventDate "2022.06.20"]
[EventType "team-tourn"]
[EventCountry "ITA"]
[SourceTitle "playchess.com"]
[Source "ChessBase"]
[SourceQuality "1"]
[TimeControl "40/5400+30:1800+30"]

1. d4 {[%emt 0:01:00]} f5 {[%emt 0:01:00]} 2. Bg5 {[%emt 0:00:00]} g6 {[%emt 0:00:00]} 3. Nc3 {[%emt 0:01:00]} Bg7 {[%emt 0:00:00]} 4. e3 {[%emt 0:00:00]} d6 {[%emt 0:03:30]} 5. Bc4 {[%emt 0:05:00]} Nf6 {[%emt 0:06:30]} 6. h4 {[%emt 0:07:30]} h6 {[%emt 0:05:30]} 7. Bxf6 {[%emt 0:10:30]} Bxf6 {[%emt 0:00:30]} 8. Nge2 {[%emt 0:00:30]} e5 {[%emt 0:04:30]} 9. dxe5 {[%emt 0:08:30]} dxe5 {[%emt 0:00:30]} 10. Qxd8+ {[%emt 0:00:30]} Bxd8 {[%emt 0:00:00]} 11. O-O-O {[%emt 0:00:30]} Nc6 {[%emt 0:09:00]} 12. Bb5 {[%emt 0:04:30]} Bd7 {[%emt 0:02:30]} 13. f4 {[%emt 0:00:30]} e4 {[%emt 0:16:30]} 14. Nd4 {[%emt 0:08:30]} Nxd4 {[%emt 0:03:30]} 15. Bxd7+ {[%emt 0:04:30]} Kxd7 {[%emt 0:00:30]} 16. Rxd4+ {[%emt 0:00:30]} Ke6 {[%emt 0:06:30]} 17. g3 {[%emt 0:07:30]} Be7 {[%emt 0:08:30]} 18. Nd5 {[%emt 0:16:30]} Bd6 {[%emt 0:02:30]} 19. Rhd1 {[%emt 0:03:54]} Rac8 {[%emt 0:04:30]} 20. R4d2 {[%emt 0:08:27]} Rhd8 {[%emt 0:05:49]} 21. Nc3 {[%emt 0:03:02]} a6 {[%emt 0:05:22]} 22. Ne2 {[%emt 0:00:36]} Rg8 {[%emt 0:00:48]} 23. Nd4+ {[%emt 0:00:56]} Kf6 {[%emt 0:00:13]} 24. Rh1 {[%emt 0:00:37]} Bc5 {[%emt 0:02:09]} 25. c3 {[%emt 0:00:17]} Rcd8 {[%emt 0:01:08]} 26. Rg2 {[%emt 0:00:59]} h5 {[%emt 0:07:05]} 27. Rd1 {[%emt 0:00:13]} Rd6 {[%emt 0:00:37]} 28. Rgd2 {[%emt 0:00:56]} Rgd8 {[%emt 0:00:14]} 29. Nc2 {[%emt 0:00:56]} Rxd2 {[%emt 0:01:26]} 30. Rxd2 {[%emt 0:00:01]} Rxd2 {[%emt 0:00:10]} 31. Kxd2 {[%emt 0:00:02]} Ke6 {[%emt 0:00:50]} 32. Nd4+ {[%emt 0:03:50]} Kd5 {[%emt 0:00:36]} 33. Ne2 {[%emt 0:01:16]} b5 {[%emt 0:00:56]} 34. b3 {[%emt 0:00:39]} Be7 {[%emt 0:01:22]} 35. Nd4 {[%emt 0:00:32]} c6 {[%emt 0:01:18]} 36. Nc2 {[%emt 0:00:18]} a5 {[%emt 0:00:19]} 37. Ke2 {[%emt 0:00:33]} Bd6 {[%emt 0:00:51]} 38. Kd2 {[%emt 0:00:08]} Bf8 {[%emt 0:00:24]} 39. Ke2 {[%emt 0:00:22]} Be7 {[%emt 0:00:14]} 40. Kd2 {[%emt 0:00:00]} Bc5 {[%emt 0:00:00]} 41. Ke2 {[%emt 0:02:56]} Be7 {[%emt 0:12:09]} 42. Kd2 {[%emt 0:00:30]} a4 {[%emt 0:06:34]} 43. Ke2 {[%emt 0:04:30]} Kc5 {[%emt 0:01:40]} 44. Kd2 {[%emt 0:00:30]} Kb6 {[%emt 0:00:32]} 45. Nd4 {[%emt 0:00:30]} axb3 {[%emt 0:01:31]} 46. axb3 {[%emt 0:00:30]} c5 {[%emt 0:00:16]} 47. Ne6 {[%emt 0:07:30]} Ka5 {[%emt 0:01:17]} 48. Kc2 {[%emt 0:00:30]} 1/2-1/2

[Event "FIDE WSTC-50-65 2022"]
[Site "Acqui Terme"]
[Date "2022.06.27"]
[Round "7.1"]
[White "Kaidanov, Gregory"]
[Black "Sturua, Zurab"]
[Result "1/2-1/2"]
[ECO "D35"]
[WhiteElo "2556"]
[BlackElo "2530"]
[Annotator "TA"]
[PlyCount "35"]
[EventDate "2022.06.20"]
[EventType "team-tourn"]
[EventCountry "ITA"]
[SourceTitle "playchess.com"]
[Source "ChessBase"]
[SourceQuality "1"]
[TimeControl "40/5400+30:1800+30"]

{[%evp 10,35,32,23,33,33,41,40,38,37,39,41,39,49,41,25,25,27,27,30,31,-48,-58,-64,-8,-2,-4,-4]} 1. d4 {[%emt 0:01:00]} Nf6 {[%emt 0:01:00]} 2. c4 {[%emt 0:00:00]} e6 {[%emt 0:00:30]} 3. Nc3 {[%emt 0:00:00]} d5 {[%emt 0:01:30]} 4. cxd5 {[%emt 0:03:30]} exd5 {[%emt 0:00:30]} 5. Bg5 {[%emt 0:00:30]} Nbd7 {[%emt 0:03:30]} 6. e3 {[%emt 0:00:00]} h6 {[%emt 0:00:30] D35: Queen's Gambit Declined: Exchange Variation.} 7. Bf4 {[%emt 0:02:00]} a6 {[%emt 0:05:30]} 8. Bd3 {[%emt 0:00:30] [#]} Nb6 $146 {[%emt 0:00:30] White is slightly better.} ({Predecessor:} 8... c5 9. dxc5 Nxc5 10. Nge2 Be7 11. O-O O-O 12. Rc1 Be6 13. Nd4 Qd7 14. Bb1 Rac8 {1-0 (58) Goryachkina,A (2593)-Musalov,R (2359) Sochi 2021}) 9. Nf3 {[%emt 0:01:30]} Bd6 {[%emt 0:08:30]} 10. Ne5 {[%emt 0:01:30]} Qe7 {[%emt 0:03:30]} 11. O-O {[%emt 0:08:30]} Nbd7 {[%emt 0:22:30][%cal Rd7e5]} 12. Nxd7 {[%emt 0:11:30]} Bxd7 {[%emt 0:00:30]} 13. Qf3 {[%emt 0:06:30]} c6 {[%emt 0:09:30]} 14. Bxd6 {[%emt 0:05:30]} Qxd6 {[%emt 0:00:30]} 15. e4 {[%emt 0:01:30]} ({White should play} 15. Na4 $14) 15... dxe4 $15 {[%emt 0:01:30]} 16. Nxe4 {[%emt 0:00:30]} Nxe4 {[%emt 0:05:30]} (16... Qxd4 $15 17. Rad1 Nxe4 18. Bxe4 Qf6) 17. Qxe4+ $11 {[%emt 0:00:30]} Be6 {[%emt 0:00:30]} 18. Bc4 {[%emt 0:10:30] Weighted Error Value: White=0.14 (very precise) /Black=0.11 (very precise)} 1/2-1/2